lending/lending_fUSD_20251016
["ID","MTS","AMOUNT","RATE_DAILY","PERIOD"]
[391366741,1760575841615,-10171.97743765,0.00023288,2]
[391366742,1760575841624,-238.5598872,0.00023332,2]
[391366743,1760575841633,-11515.95314527,0.00023333,7]
[391366744,1760575841643,-414.0,0.00023381,2]
[391366745,1760575841652,-2545.0,0.00023387,2]
[391366746,1760575841661,-1000.0,0.00023422,2]
[391366747,1760575841670,-164.78479487,0.00023438,2]
[391366748,1760575841680,-500.0,0.00023438,2]
[391366749,1760575841689,-523.72081948,0.00023438,2]
[391366750,1760575841698,-157.39462171,0.00023438,2]
[391366751,1760575841708,-1600.0,0.00023492,2]
[391366752,1760575841717,-151.0,0.00023492,7]
[391366753,1760575841727,-229.592061,0.00023492,7]
[391366754,1760575841737,-229.592061,0.00023492,7]
[391366755,1760575841746,-229.592061,0.00023492,7]
[391366756,1760575841755,-229.59206417,0.00023492,7]
[391366757,1760575841765,-151.0,0.00023492,7]
[391366758,1760575841775,-151.0,0.00023492,7]
[391366759,1760575841785,-151.0,0.00023492,7]
[391366760,1760575841796,-151.0,0.00023492,7]
[391366761,1760575841805,-151.0,0.00023492,7]
[391366762,1760575841815,-151.0,0.00023492,7]
[391366763,1760575841825,-151.0,0.00023492,7]
[391366764,1760575841834,-218.873612,0.00023492,7]
[391366765,1760575841847,-218.873612,0.00023492,7]
[391366766,1760575841856,-218.873612,0.00023492,7]
[391366767,1760575841867,-218.873616,0.00023492,7]
[391366768,1760575841876,-184.562998,0.00023492,7]
[391366769,1760575841887,-184.562998,0.00023492,7]
[391366770,1760575841896,-184.562998,0.00023492,7]
[391366771,1760575841907,-184.562996,0.00023492,7]
[391366772,1760575841918,-200.0,0.000235,2]
[391366773,1760575841927,-3710.55990938,0.000235,30]
[391366774,1760575841937,-152.0,0.00023559,3]
[391366775,1760575841946,-1000.0,0.00023561,2]
[391366776,1760575841955,-600.0,0.00023562,2]
[391366777,1760575841965,-151.0,0.00023582,7]
[391366778,1760575841974,-151.0,0.00023582,7]
[391366779,1760575841984,-166.66,0.00023641,30]
[391366780,1760575841993,-16497.92873727,0.00023666,2]
[391366781,1760575842003,-151.0,0.00023666,7]
[391366782,1760575842012,-1000.0,0.00023721,2]
[391366783,1760575842022,-504.133,0.00023728,4]
[391366784,1760575842031,-15755.9771924,0.00023803,2]
[391366785,1760575842041,-151.0,0.00023815,7]
[391366786,1760575842050,-15428.237771,0.00023815,2]
[391366787,1760575842059,-156.80254215,0.00023835,2]
[391366788,1760575842069,-1100.0,0.000239,8]
[391366789,1760575842078,-2616.3086413,0.00023911,2]
[391366790,1760575842087,-208.15380563,0.00023931,2]
[391366791,1760575842097,-10600.62123655,0.00023933,2]
[391366792,1760575842106,-204.778773,0.00023949,7]
[391366793,1760575842116,-8327.3992106,0.00023949,2]
[391366794,1760575842125,-151.81,0.00024,2]
[391366795,1760575842135,-1885.3448173,0.00024,2]
[391366796,1760575842144,-32817.58182693,0.00024,4]
[391366797,1760575842154,-151.0,0.00024,7]
[391366798,1760575842163,-422.44174131,0.0002401,2]
[391366799,1760575842172,-1500.0,0.00024031,28]
[391366800,1760575842182,-1500.0,0.00024031,28]
[391366801,1760575842191,-1500.0,0.00024031,28]
[391366802,1760575842201,-1500.0,0.00024031,28]
[391366803,1760575842210,-1500.0,0.00024031,28]
[391366804,1760575842220,-1500.0,0.00024031,28]
[391366805,1760575842229,-1500.0,0.00024031,28]
[391366806,1760575842239,-1500.0,0.00024031,28]
[391366807,1760575842248,-1500.0,0.00024031,28]
[391366808,1760575842258,-1500.0,0.00024031,28]
[391366809,1760575842267,-1500.0,0.00024031,28]
[391366810,1760575842276,-1500.0,0.00024031,28]
[391366811,1760575842285,-1500.0,0.00024031,28]
[391366812,1760575842294,-1500.0,0.00024031,28]
[391366813,1760575842303,-1500.0,0.00024031,28]
[391366814,1760575842313,-1500.0,0.00024031,28]
[391366815,1760575842324,-1500.0,0.00024031,28]
[391366816,1760575842333,-1500.0,0.00024031,28]
[391366817,1760575842342,-1500.0,0.00024031,28]
[391366818,1760575842351,-1500.0,0.00024031,28]
[391366819,1760575842361,-1500.0,0.00024031,28]
[391366820,1760575842370,-1500.0,0.00024031,28]
[391366821,1760575842379,-1500.0,0.00024031,28]
[391366822,1760575842389,-1500.0,0.00024031,28]
[391366823,1760575842398,-1500.0,0.00024031,28]
[391366824,1760575842408,-1500.0,0.00024031,28]
[391366825,1760575842417,-1500.0,0.00024031,28]
[391366826,1760575842426,-1500.0,0.00024031,28]
[391366827,1760575842435,-1500.0,0.00024031,28]
[391366828,1760575842445,-1500.0,0.00024031,28]
[391366829,1760575842454,-1500.0,0.00024031,28]
[391366830,1760575842463,-1500.0,0.00024031,28]
[391366831,1760575842472,-1500.0,0.00024031,28]
[391366832,1760575842481,-1500.0,0.00024031,28]
[391366833,1760575842490,-1500.0,0.00024031,28]
[391366834,1760575842499,-1500.0,0.00024031,28]
[391366835,1760575842508,-1500.0,0.00024031,28]
[391366836,1760575842517,-1500.0,0.00024031,28]
[391366837,1760575842526,-1500.0,0.00024031,28]
[391366838,1760575842535,-1500.0,0.00024031,28]
[391366839,1760575842544,-1500.0,0.00024031,28]
[391366840,1760575842552,-1500.0,0.00024031,28]
[391366841,1760575842561,-1500.0,0.00024031,28]
[391366842,1760575842571,-1500.0,0.00024031,28]
[391366843,1760575842580,-1500.0,0.00024031,28]
[391366844,1760575842589,-1500.0,0.00024031,28]
[391366845,1760575842599,-1500.0,0.00024031,28]
[391366846,1760575842608,-1500.0,0.00024031,28]
[391366847,1760575842618,-1500.0,0.00024031,28]
[391366848,1760575842627,-1500.0,0.00024031,28]
[391366849,1760575842636,-1500.0,0.00024031,28]
[391366850,1760575842646,-1500.0,0.00024031,28]
[391366851,1760575842655,-1500.0,0.00024031,28]
[391366852,1760575842664,-1500.0,0.00024031,28]
[391366853,1760575842673,-1500.0,0.00024031,28]
[391366854,1760575842683,-1500.0,0.00024031,28]
[391366855,1760575842692,-1500.0,0.00024031,28]
[391366856,1760575842702,-1500.0,0.00024031,28]
[391366857,1760575842711,-1500.0,0.00024031,28]
[391366858,1760575842720,-1500.0,0.00024031,28]
[391366859,1760575842729,-1500.0,0.00024031,28]
[391366860,1760575842739,-1500.0,0.00024031,28]
[391366861,1760575842749,-1500.0,0.00024031,28]
[391366862,1760575842758,-1500.0,0.00024031,28]
[391366863,1760575842767,-1500.0,0.00024031,28]
[391366864,1760575842776,-1500.0,0.00024031,28]
[391366865,1760575842786,-1500.0,0.00024031,28]
[391366866,1760575842795,-1500.0,0.00024031,28]
[391366867,1760575842805,-1500.0,0.00024031,28]
[391366868,1760575842814,-1500.0,0.00024031,28]
[391366869,1760575842824,-1500.0,0.00024031,28]
[391366870,1760575842833,-1500.0,0.00024031,28]
[391366871,1760575842846,-1500.0,0.00024031,28]
[391366872,1760575842856,-1500.0,0.00024031,28]
[391366873,1760575842865,-1500.0,0.00024031,28]
[391366874,1760575842874,-1500.0,0.00024031,28]
[391366875,1760575842886,-1500.0,0.00024031,28]
[391366876,1760575842894,-1500.0,0.00024031,28]
[391366877,1760575842903,-1500.0,0.00024031,28]
[391366878,1760575842913,-1500.0,0.00024031,28]
[391366879,1760575842922,-1500.0,0.00024031,28]
[391366880,1760575842931,-1500.0,0.00024031,28]
[391366881,1760575842941,-1500.0,0.00024031,28]
[391366882,1760575842950,-1500.0,0.00024031,28]
[391366883,1760575842959,-1500.0,0.00024031,28]
[391366884,1760575842969,-1500.0,0.00024031,28]
[391366885,1760575842978,-1500.0,0.00024031,28]
[391366886,1760575842988,-1500.0,0.00024031,28]
[391366887,1760575842998,-1500.0,0.00024031,28]
[391366888,1760575843007,-1500.0,0.00024031,28]
[391366889,1760575843017,-1500.0,0.00024031,28]
[391366890,1760575843027,-1500.0,0.00024031,28]
[391366891,1760575843037,-1500.0,0.00024031,28]
[391366892,1760575843046,-1500.0,0.00024031,28]
[391366893,1760575843055,-1500.0,0.00024031,28]
[391366894,1760575843064,-1500.0,0.00024031,28]
[391366895,1760575843075,-1500.0,0.00024031,28]
[391366896,1760575843084,-1500.0,0.00024031,28]
[391366897,1760575843093,-1500.0,0.00024031,28]
[391366898,1760575843102,-1576.939414,0.00024031,28]
[391366899,1760575843111,-10171.97743765,0.00024033,2]
[391366900,1760575843121,-500.0,0.00024073,2]
[391366901,1760575843130,-500.0,0.00024073,2]
[391366902,1760575843139,-500.0,0.00024073,2]
[391366903,1760575843149,-326.65754479,0.00024073,2]
[391366904,1760575843158,-280.275905,0.00024085,7]
[391366905,1760575843168,-63733.0426172,0.00024085,2]
[391366906,1760575843178,-30000.0,0.000241,2]
[391366907,1760575843187,-600.0,0.0002411,2]
[391366908,1760575843197,-251.6897228,0.00024116,2]
[391366909,1760575843206,-200.0,0.00024123,2]
[391366910,1760575843216,-166.66,0.00024128,30]
[391366911,1760575843226,-238.5598872,0.00024264,2]
[391366912,1760575843235,-1000.0,0.00024268,2]
[391366913,1760575843245,-1500.0,0.00024268,2]
[391366915,1760575843255,-208.15380563,0.00024316,2]
[391366916,1760575843264,-543.95259881,0.00024447,2]
[391366917,1760575843273,-157.86,0.0002448,2]
[391366918,1760575843282,-277.7100645,0.00024591,2]
[391366919,1760575843290,-474.66,0.00024592,2]
[391366920,1760575843300,-706.01,0.00024592,2]
[391366921,1760575843308,-474.66,0.00024592,2]
[391366922,1760575843318,-166.66,0.00024616,30]
[391366923,1760575843328,-1000.0,0.00024621,2]
[391366924,1760575843337,-150.0,0.00024633,4]
[391366925,1760575843346,-150.0,0.00024633,4]
[391366926,1760575843356,-150.0,0.00024633,4]
[391366927,1760575843366,-150.0,0.00024633,4]
[391366928,1760575843375,-150.0,0.00024633,4]
[391366929,1760575843385,-150.0,0.00024633,4]
[391366930,1760575843394,-202.80079128,0.00024633,4]
[391366931,1760575843403,-150.0,0.00024633,4]
[391366932,1760575843412,-150.0,0.00024633,4]
[391366933,1760575843421,-150.0,0.00024633,4]
[391366934,1760575843430,-150.0,0.00024633,4]
[391366935,1760575843439,-150.0,0.00024633,4]
[391366936,1760575843448,-1000.0,0.0002465,2]
[391366937,1760575843457,-1000.0,0.0002465,2]
[391366938,1760575843467,-1000.0,0.0002465,2]
[391366939,1760575843475,-1000.0,0.0002465,2]
[391366940,1760575843484,-1000.0,0.0002465,2]
[391366941,1760575843494,-1000.0,0.0002465,2]
[391366942,1760575843503,-1000.0,0.0002465,2]
[391366943,1760575843511,-1000.0,0.0002465,2]
[391366944,1760575843521,-1000.0,0.0002465,2]
[391366945,1760575843529,-1000.0,0.0002465,2]
[391366946,1760575843539,-1000.0,0.0002465,2]
[391366947,1760575843549,-1000.0,0.0002465,2]
[391366948,1760575843558,-1000.0,0.0002465,2]
[391366949,1760575843567,-1000.0,0.0002465,2]
[391366950,1760575843578,-1000.0,0.0002465,2]
[391366951,1760575843588,-1000.0,0.00024658,2]
[391366952,1760575843597,-337.022764,0.00024658,7]
[391366953,1760575843606,-337.022764,0.00024658,7]
[391366954,1760575843620,-337.022764,0.00024658,7]
[391366955,1760575843629,-337.022764,0.00024658,7]
[391366956,1760575843639,-337.022764,0.00024658,7]
[391366957,1760575843648,-337.022764,0.00024658,7]
[391366958,1760575843658,-337.022764,0.00024658,7]
[391366959,1760575843667,-337.022764,0.00024658,7]
[391366960,1760575843678,-337.022764,0.00024658,7]
[391366961,1760575843687,-337.022764,0.00024658,7]
[391366962,1760575843696,-337.022764,0.00024658,7]
[391366963,1760575843705,-337.022764,0.00024658,7]
[391366964,1760575843715,-337.022764,0.00024658,7]
[391366965,1760575843724,-337.022764,0.00024658,7]
[391366966,1760575843733,-337.02277,0.00024658,7]
[391366967,1760575843743,-629.12,0.00024658,2]
[391366968,1760575843753,-151.0,0.00024658,7]
[391366969,1760575843763,-151.0,0.00024658,7]
[391366970,1760575843772,-151.0,0.00024658,7]
[391366971,1760575843782,-151.0,0.00024658,7]
[391366972,1760575843792,-151.0,0.00024658,7]
[391366973,1760575843802,-151.0,0.00024658,7]
[391366974,1760575843816,-151.0,0.00024658,7]
[391366975,1760575843827,-151.0,0.00024658,7]
[391366976,1760575843836,-151.0,0.00024658,7]
[391366977,1760575843852,-168.902068,0.00024658,7]
[391366978,1760575843862,-273.769486,0.00024658,7]
[391366979,1760575843873,-273.769486,0.00024658,7]
[391366980,1760575843884,-273.769486,0.00024658,7]
[391366981,1760575843895,-273.769486,0.00024658,7]
[391366982,1760575843904,-273.769486,0.00024658,7]
[391366983,1760575843915,-273.769486,0.00024658,7]
[391366984,1760575843927,-273.769486,0.00024658,7]
[391366985,1760575843937,-273.769486,0.00024658,7]
[391366986,1760575843947,-273.769486,0.00024658,7]
[391366987,1760575843956,-273.769486,0.00024658,7]
[391366988,1760575843966,-273.769486,0.00024658,7]
[391366989,1760575843977,-273.769486,0.00024658,7]
[391366990,1760575843987,-273.769486,0.00024658,7]
[391366991,1760575843996,-273.769486,0.00024658,7]
[391366992,1760575844007,-273.769486,0.00024658,7]
[391366993,1760575844020,-273.769486,0.00024658,7]
[391366994,1760575844030,-273.769486,0.00024658,7]
[391366995,1760575844040,-273.769486,0.00024658,7]
[391366996,1760575844050,-273.769486,0.00024658,7]
[391366997,1760575844060,-273.769488,0.00024658,7]
[391366998,1760575844070,-300.0,0.00024658,30]
[391366999,1760575844081,-300.0,0.00024658,30]
[391367000,1760575844090,-300.0,0.00024658,30]
[391367001,1760575844101,-300.0,0.00024658,30]
[391367002,1760575844111,-300.0,0.00024658,30]
[391367003,1760575844120,-300.0,0.00024658,30]
[391367004,1760575844131,-300.0,0.00024658,30]
[391367005,1760575844339,-300.0,0.00024658,30]
[391367006,1760575844362,-300.0,0.00024658,30]
[391367007,1760575844372,-300.0,0.00024658,30]
[391367008,1760575844381,-600.0,0.00024658,2]
[391367009,1760575844392,-161.86608311,0.000247,2]
[391367010,1760575844402,-10600.62123655,0.000247,2]
[391367011,1760575844414,-208.15380563,0.000247,2]
[391367012,1760575844424,-2200.0,0.000247,9]
[391367013,1760575844435,-1000.0,0.00024704,2]
[391367014,1760575844444,-166.66,0.00024765,2]
[391367015,1760575844454,-273.06431883,0.00024773,2]
[391367016,1760575844463,-10171.97743765,0.00024778,2]
[391367017,1760575844473,-152.0,0.00024782,4]
[391367018,1760575844483,-463.76867309,0.0002479,2]
[391367019,1760575844492,-400.0,0.000248,2]
[391367020,1760575844501,-2000.0,0.000248,2]
[391367021,1760575844511,-3400.0,0.000248,9]
[391367022,1760575844521,-379025.230205,0.000248,3]
[391367023,1760575844530,-1026.65885657,0.000248,2]
[391367024,1760575844549,-2000.0,0.00024816,2]
[391367025,1760575844560,-202146.789442,0.0002489,3]
[391367026,1760575844571,-10000.0,0.00024899,2]
[391367027,1760575844581,-500.0,0.000249,2]
[391367028,1760575844591,-110807.74260267,0.000249,2]
[391367034,1760575846548,-166419.8078212,0.000249,2]
[391367035,1760575846566,-151.0,0.00023,7]
[391367036,1760575846575,-88640.42389873,0.000249,2]
[391367037,1760575846584,-4500.0,0.000249,9]
[391367038,1760575846593,-358549.68019607,0.000249,3]
[391367039,1760575846605,-4772.61728148,0.000249,3]
[391367040,1760575846618,-4619.912746,0.000249,3]
[391367041,1760575846650,500.0,0.00027396,120]
[391367042,1760575846701,500.0,0.00027396,120]
[391367043,1760575847082,-5656.94478949,0.00021882,2]
[391367044,1760575847094,-151.0,0.00022,7]
[391367045,1760575847104,-151.0,0.00022,2]
[391367046,1760575847114,-151.0,0.00022,7]
[391367047,1760575847123,-151.0,0.00022,2]
[391367048,1760575847133,-151.0,0.00022,2]
[391367049,1760575847143,-3421.24005,0.00022,2]
[391367050,1760575847152,-151.0,0.000224,7]
[391367051,1760575847162,-151.0,0.000224,2]
[391367052,1760575847171,-151.0,0.000224,7]
[391367053,1760575847181,-151.0,0.000224,2]
[391367054,1760575847190,-151.0,0.000224,2]
[391367055,1760575847200,-151.0,0.000225,7]
[391367056,1760575847209,-151.0,0.000225,2]
[391367057,1760575847219,-178.156184,0.000225,7]
[391367058,1760575847229,-151.0,0.000225,2]
[391367059,1760575847239,-151.0,0.000228,7]
[391367060,1760575847248,-151.0,0.000228,2]
[391367061,1760575847258,-151.0,0.000228,2]
[391367062,1760575847267,-151.0,0.00023,7]
[391367063,1760575847277,-151.0,0.00023,2]
[391367064,1760575847287,-151.0,0.00023,2]
[391367065,1760575847297,-3421.24005,0.00024,2]
[391367066,1760575847307,-151.0,0.00024658,7]
[391367067,1760575847317,-151.0,0.00024658,7]
[391367068,1760575847328,-151.0,0.00024658,7]
[391367069,1760575847337,-151.0,0.00024658,7]
[391367070,1760575847347,-151.0,0.00024658,7]
[391367071,1760575847356,-151.0,0.00024658,7]
[391367072,1760575847366,-151.0,0.00024658,7]
[391367073,1760575847375,-151.0,0.00024658,7]
[391367074,1760575847385,-151.0,0.00024658,7]
[391367075,1760575847395,-33962.66298579,0.000249,3]
[391367076,1760575847407,-420.816212,0.000249,3]
[391367077,1760575847419,-853.86922575,0.000249,3]
[391367078,1760575847434,-151.0,0.00024658,7]
[391367079,1760575847443,-119.45412485,0.000249,3]
[391367080,1760575847454,-292.8940001,0.000249,3]
[391367081,1760575847466,-58425.95094796,0.000249,3]
[391367082,1760575847475,-400.0,0.00024924,2]
[391367083,1760575847485,-500.0,0.00024932,2]
[391367084,1760575847494,-1007.38,0.00025,2]
[391367085,1760575847505,-500.0,0.00025024,2]
[391367086,1760575847515,-400.0,0.00025048,2]
[391367087,1760575847525,-166.66,0.00025103,30]
[391367088,1760575847535,-1000.0,0.00025115,2]
[391367089,1760575847544,-422.44174127,0.0002514,2]
[391367090,1760575847554,-500.0,0.00025149,2]
[391367091,1760575847563,-1092.41983674,0.00025168,2]
[391367092,1760575847573,-1000.0,0.00025189,2]
[391367093,1760575847583,-238.5598872,0.00025196,2]
[391367094,1760575847593,-600.0,0.00025206,2]
[391367095,1760575847602,-739.0,0.00025293,2]
[391367096,1760575847612,-2500.0,0.00025364,2]
[391367097,1760575847621,-10600.62123655,0.00025467,2]
[391367098,1760575847631,-1007.38,0.000255,2]
[391367099,1760575847640,-10171.97743765,0.00025522,2]
[391367100,1760575847649,-413.53,0.0002555,2]
[391367101,1760575847659,-413.53,0.0002555,2]
[391367102,1760575847668,-413.53,0.0002555,2]
[391367103,1760575847678,-412.97,0.0002555,2]
[391367104,1760575847687,-613.78,0.0002555,2]
[391367105,1760575847696,-166.66,0.00025591,30]
[391367106,1760575847705,-475.49624517,0.000256,30]
[391367107,1760575847715,-322.6107,0.00025651,2]
[391367108,1760575847724,-670.58624095,0.00025651,2]
[391367109,1760575847733,-500.0,0.00025651,2]
[391367110,1760575847742,-9552.16786547,0.00025651,2]
[391367111,1760575847752,-257.91778498,0.00025651,2]
[391367112,1760575847761,-761.75175,0.000257,2]
[391367113,1760575847771,-200.0,0.00025702,2]
[391367114,1760575847781,-9905.5980765,0.00025706,2]
[391367115,1760575847791,-600.0,0.00025754,2]
[391367116,1760575847800,-10272.10520533,0.00025761,2]
[391367117,1760575847809,-10652.17309792,0.00025816,2]
[391367118,1760575847818,-200.0,0.0002586,2]
[391367119,1760575847828,-11046.30350255,0.00025871,2]
[391367120,1760575847838,-2537.18150864,0.00025879,2]
[391367121,1760575847852,-3000.0,0.00025912,2]
[391367122,1760575847862,-3078.17187445,0.00025926,2]
[391367123,1760575847871,-1000.0,0.00025961,2]
[391367124,1760575847880,-2000.0,0.00026,2]
[391367125,1760575847890,-500.0,0.00026,2]
[391367126,1760575847899,-500.0,0.00026,2]
[391367127,1760575847908,-3421.24005,0.00026,2]
[391367128,1760575847919,-1007.38,0.00026,30]
[391367129,1760575847929,-176.0,0.00026004,2]
[391367130,1760575847938,-300.0,0.00026004,2]
[391367131,1760575847949,-150.0,0.00026004,2]
[391367132,1760575847958,-152.0,0.00026005,5]
[391367133,1760575847968,-238.5598872,0.00026128,2]
[391367134,1760575847978,-15755.9771924,0.00026208,2]
[391367135,1760575847987,-10600.62123655,0.00026233,2]
[391367136,1760575847996,-15428.237771,0.00026234,2]
[391367137,1760575848007,-168.0,0.00026241,2]
[391367138,1760575848016,-10171.97743765,0.00026267,2]
[391367139,1760575848026,-10000.0,0.00026269,5]
[391367140,1760575848035,-422.44174127,0.0002627,2]
[391367141,1760575848044,-442.0,0.000263,2]
[391367142,1760575848054,-600.0,0.00026302,2]
[391367143,1760575848063,-168.0,0.00026348,2]
[391367144,1760575848074,-300.0,0.00026372,2]
[391367145,1760575848083,-150.0,0.00026372,2]
[391367146,1760575848092,-150.0,0.00026372,2]
[391367147,1760575848101,-546.15,0.00026372,2]
[391367148,1760575848111,-413.53,0.00026372,2]
[391367149,1760575848120,-151.0,0.00026379,5]
[391367150,1760575848129,-2545.0,0.00026387,2]
[391367151,1760575848139,-1616.0,0.00026422,2]
[391367152,1760575848148,-2616.3086413,0.00026425,2]
[391367153,1760575848158,-185.5412517,0.00026438,2]
[391367154,1760575848167,-168.0,0.00026446,2]
[391367155,1760575848176,-3500.0,0.0002646,2]
[391367156,1760575848186,-182915.82922054,0.000265,5]
[391367157,1760575848198,-908.26,0.000265,5]
[391367158,1760575852683,-0.00555117,0.000265,5]
[391367159,1760575852846,2000.0,0.0002739,120]
[391367160,1760575853252,-378.130268,0.00022,7]
[391367161,1760575853262,-378.130268,0.000224,7]
[391367162,1760575853272,-378.130268,0.000225,7]
[391367163,1760575853281,-378.130268,0.000228,7]
[391367164,1760575853291,-141.3845937,0.00023,7]
[391367165,1760575853303,-236.7456743,0.00023,7]
[391367166,1760575853312,-432.7983458,0.00023199,2]
[391367167,1760575853328,-151.0,0.00022,7]
[391367168,1760575853338,-67.2016542,0.00023199,2]
[391367169,1760575853347,-500.0,0.00023199,2]
[391367170,1760575853357,-500.0,0.00023199,2]
[391367171,1760575853366,-500.0,0.00023199,2]
[391367172,1760575853376,-500.0,0.00023199,2]
[391367173,1760575853385,-500.0,0.00023199,2]
[391367174,1760575853395,-500.0,0.00023199,2]
[391367175,1760575853404,-500.0,0.00023199,2]
[391367176,1760575853413,-620.42724269,0.00023199,2]
[391367177,1760575853422,-175.11382,0.00024658,7]
[391367178,1760575853431,-10170.55997331,0.000265,5]
[391367179,1760575853443,-1380.89951612,0.000265,5]
[391367180,1760575853454,-651.20536627,0.000265,5]
[391367181,1760575853467,-608.052521,0.000265,5]
[391367182,1760575853616,-378.130268,0.00022,7]
[391367183,1760575853625,-378.130268,0.00022,7]
[391367184,1760575853635,-378.130268,0.000224,7]
[391367185,1760575853644,-378.130268,0.000224,7]
[391367186,1760575853653,-150.221068,0.000225,7]
[391367187,1760575853669,-227.9092,0.000225,7]
[391367188,1760575853679,-378.130268,0.000225,7]
[391367189,1760575853689,-378.130268,0.000228,7]
[391367190,1760575853698,-291.23550104,0.000228,7]
[391367191,1760575853710,-86.89476696,0.000228,7]
[391367192,1760575853719,-200.63856464,0.00023,7]
[391367193,1760575853908,1000.0,0.0002739,120]
[391367220,1760576117825,1000.0,0.00027397,120]
[391367221,1760576126091,1000.0,0.00027397,120]
[391367230,1760576133171,1000.0,0.00027397,120]
[391367241,1760576136147,300.0,0.00027397,120]
[391367248,1760576139051,1000.0,0.00027397,120]
[391367249,1760576145099,1000.0,0.00027397,120]
[391367250,1760576222601,1000.0,0.00027397,120]
[391367251,1760576443254,300.0,0.00027397,120]
[391367254,1760576546108,330.9,0.00012054,2]
[391367255,1760576546337,330.9,0.00012688,2]
[391367256,1760576741623,2000.0,0.0002739,120]
[391367257,1760576750732,300.0,0.00027397,120]
[391367258,1760576778955,2000.0,0.0002739,120]
[391367259,1760576794356,2000.0,0.0002739,120]
[391367260,1760576820995,2005.0,0.0002739,120]
[391367261,1760576908206,1158.0,0.00027397,120]
[391367282,1760577032207,-330.9,0.00013323,2]
[391367283,1760577032218,-330.9,0.00013957,2]
[391367284,1760577032227,-72.44308178,0.00014439,2]
[391367285,1760577032324,-227.55691822,0.00014439,2]
[391367286,1760577032334,-300.0,0.00014439,2]
[391367287,1760577032344,-169.80002192,0.00014439,2]
[391367288,1760577032355,-175.35879412,0.00014555,2]
[391367289,1760577032364,-330.9,0.00014591,2]
[391367290,1760577032374,-1090.0,0.00014654,2]
[391367291,1760577032383,-2236.99244533,0.00014655,2]
[391367310,1760577038060,-263.00755467,0.00014655,2]
[391367311,1760577038070,-300.0,0.00014655,2]
[391367312,1760577038080,-419.39300863,0.00014655,2]
[391367317,1760577040149,-630.66969137,0.00014655,2]
[391367318,1760577040161,-195.0,0.00014655,2]
[391367319,1760577040170,-422.81008989,0.00014655,2]
[391367320,1760577040180,-250.0,0.00014655,2]
[391367321,1760577040189,-195.0,0.00014655,2]
[391367322,1760577040204,-266.26413384,0.00015038,2]
[391367323,1760577040213,-1228.406099,0.00015124,2]
[391367324,1760577040223,-117.26037782,0.000152,2]
[391367325,1760577040235,-682.73962218,0.000152,2]
[391367326,1760577040245,-330.9,0.00015226,2]
[391367327,1760577040255,-639.02399691,0.000158,2]
[391367328,1760577040265,-1332.30804787,0.000158,2]
[391367329,1760577040277,-3779.62863851,0.000158,2]
[391367330,1760577040288,-2961.94826072,0.000158,2]
[391367331,1760577040329,-9063.2450529,0.000158,2]
[391367332,1760577040339,-330.9,0.0001586,2]
[391367333,1760577040349,-402.20060173,0.000159,2]
[391367334,1760577040359,-475.49624517,0.00015909,2]
[391367335,1760577040369,-639.02399691,0.00016,2]
[391367336,1760577040379,-639.02399691,0.000161,2]
[391367337,1760577040389,-402.20060173,0.000161,2]
[391367338,1760577040399,-1562.0,0.00016126,2]
[391367339,1760577040408,-402.20060173,0.000162,2]
[391367340,1760577040418,-639.02399691,0.000163,2]